[Event "*** Titled Tuesday Blitz"]
[Site "Chess.com"]
[Date "2020.12.01"]
[Round "11"]
[White "FMalexhdez"]
[Black "InitiatingASC"]
[Result "0-1"]
[WhiteElo "2306"]
[BlackElo "2427"]
[TimeControl "180+1"]
[EndTime "12:06:29 PST"]
[Termination "InitiatingASC won on time"]

1. e4 {[%clk 0:01:25.6]} 1... c5 {[%clk 0:02:57.9]} 2. Nf3 {[%clk 0:01:25.7]}
2... Nc6 {[%clk 0:02:58.2]} 3. d4 {[%clk 0:01:26.4]} 3... cxd4 {[%clk
0:02:59.1]} 4. Nxd4 {[%clk 0:01:26.8]} 4... Nf6 {[%clk 0:02:59.6]} 5. Nc3 {[%clk
0:01:27.1]} 5... e5 {[%clk 0:02:59.9]} 6. Nf3 {[%clk 0:01:26.2]} 6... h6 {[%clk
0:03:00]} 7. Bc4 {[%clk 0:01:26.2]} 7... d6 {[%clk 0:02:58.2]} 8. O-O {[%clk
0:01:26.2]} 8... Be7 {[%clk 0:02:58.3]} 9. Re1 {[%clk 0:01:26.2]} 9... O-O
{[%clk 0:02:58.5]} 10. a4 {[%clk 0:01:26.6]} 10... Be6 {[%clk 0:02:56.7]} 11.
Bd5 {[%clk 0:01:23.9]} 11... Rc8 {[%clk 0:02:54.6]} 12. Be3 {[%clk 0:01:23]}
12... a6 {[%clk 0:02:53]} 13. Qd2 {[%clk 0:01:22.5]} 13... Ng4 {[%clk
0:02:49.1]} 14. h3 {[%clk 0:01:17.8]} 14... Nxe3 {[%clk 0:02:49]} 15. Qxe3
{[%clk 0:01:18.2]} 15... Nb4 {[%clk 0:02:42.7]} 16. Rac1 {[%clk 0:01:00.5]}
16... Rxc3 {[%clk 0:02:23]} 17. bxc3 {[%clk 0:00:59.6]} 17... Nxd5 {[%clk
0:02:23.2]} 18. exd5 {[%clk 0:00:59.2]} 18... Bxd5 {[%clk 0:02:23.6]} 19. Rb1
{[%clk 0:00:57.3]} 19... Qa5 {[%clk 0:02:14.6]} 20. Red1 {[%clk 0:00:56.8]}
20... Bc6 {[%clk 0:02:11.4]} 21. Rb4 {[%clk 0:00:47.2]} 21... Qc7 {[%clk
0:01:57.2]} 22. Rg4 {[%clk 0:00:41.8]} 22... f5 {[%clk 0:01:48]} 23. Rc4 {[%clk
0:00:25.4]} 23... Qa5 {[%clk 0:01:29]} 24. Rb4 {[%clk 0:00:21.5]} 24... Rf7
{[%clk 0:01:11.7]} 25. Qb6 {[%clk 0:00:21]} 25... Qxb6 {[%clk 0:01:09.8]} 26.
Rxb6 {[%clk 0:00:21]} 26... Bd8 {[%clk 0:01:05.8]} 27. Rb4 {[%clk 0:00:20.2]}
27... Rd7 {[%clk 0:01:03.1]} 28. c4 {[%clk 0:00:20.1]} 28... Ba5 {[%clk
0:01:02.5]} 29. Rb2 {[%clk 0:00:18]} 29... Bc7 {[%clk 0:00:40.5]} 30. c5 {[%clk
0:00:17.3]} 30... d5 {[%clk 0:00:32.9]} 31. c3 {[%clk 0:00:16.4]} 31... Bxa4
{[%clk 0:00:27.3]} 32. Re1 {[%clk 0:00:16.5]} 32... e4 {[%clk 0:00:19.2]} 33.
Nd4 {[%clk 0:00:16]} 33... Ba5 {[%clk 0:00:19.3]} 34. Rc1 {[%clk 0:00:12.1]}
34... Bc6 {[%clk 0:00:16.2]} 35. Nxf5 {[%clk 0:00:11.2]} 35... Bc7 {[%clk
0:00:14.7]} 36. Nd4 {[%clk 0:00:10.7]} 36... Be5 {[%clk 0:00:15]} 37. Nxc6
{[%clk 0:00:10]} 37... bxc6 {[%clk 0:00:15.4]} 38. Rb6 {[%clk 0:00:10.1]} 38...
Rc7 {[%clk 0:00:15.2]} 39. Rxa6 {[%clk 0:00:10.1]} 39... Kf7 {[%clk 0:00:14.6]}
40. Kf1 {[%clk 0:00:09]} 40... Ke6 {[%clk 0:00:14.9]} 41. Ke2 {[%clk 0:00:09.5]}
41... Kd7 {[%clk 0:00:15.4]} 42. Kd2 {[%clk 0:00:09.4]} 42... Bf4+ {[%clk
0:00:14.8]} 43. Kc2 {[%clk 0:00:09.9]} 43... Bxc1 {[%clk 0:00:14.9]} 44. Kxc1
{[%clk 0:00:10.6]} 44... Rb7 {[%clk 0:00:15.4]} 45. Ra8 {[%clk 0:00:09.4]} 45...
Rb5 {[%clk 0:00:14.6]} 46. Rg8 {[%clk 0:00:07.9]} 46... Rxc5 {[%clk 0:00:14]}
47. Kd2 {[%clk 0:00:08.1]} 47... g5 {[%clk 0:00:10]} 48. Rg6 {[%clk 0:00:06.9]}
48... Rb5 {[%clk 0:00:09.6]} 49. Rxh6 {[%clk 0:00:07]} 49... Rb2+ {[%clk
0:00:09.5]} 50. Ke3 {[%clk 0:00:07]} 50... Rc2 {[%clk 0:00:09.7]} 51. Rg6 {[%clk
0:00:06.3]} 51... Rxc3+ {[%clk 0:00:09.9]} 52. Ke2 {[%clk 0:00:04.8]} 52... d4
{[%clk 0:00:09.6]} 53. Rxg5 {[%clk 0:00:04]} 53... c5 {[%clk 0:00:10]} 54. Re5
{[%clk 0:00:03.2]} 54... Rc2+ {[%clk 0:00:10.4]} 55. Kd1 {[%clk 0:00:02.1]}
55... Rxf2 {[%clk 0:00:10.1]} 56. g4 {[%clk 0:00:02]} 56... e3 {[%clk 0:00:10]}
57. h4 {[%clk 0:00:02.2]} 57... Rh2 {[%clk 0:00:09.3]} 58. Rxc5 {[%clk
0:00:01.8]} 58... Kd6 {[%clk 0:00:09.3]} 0-1

[Event "*** Titled Tuesday Blitz"]
[Site "Chess.com"]
[Date "2020.12.01"]
[Round "11"]
[White "ambaixador"]
[Black "MPGM"]
[Result "1/2-1/2"]
[WhiteElo "2468"]
[BlackElo "2638"]
[TimeControl "180+1"]
[EndTime "12:06:30 PST"]
[Termination "Game drawn by repetition"]

1. Nf3 {[%clk 0:03:00.9]} 1... d5 {[%clk 0:02:59.4]} 2. c4 {[%clk 0:03:00.4]}
2... e6 {[%clk 0:02:59.8]} 3. d4 {[%clk 0:03:00]} 3... c5 {[%clk 0:02:58.6]} 4.
cxd5 {[%clk 0:02:59.3]} 4... exd5 {[%clk 0:02:59.5]} 5. g3 {[%clk 0:03:00.2]}
5... Nf6 {[%clk 0:02:59.1]} 6. Bg2 {[%clk 0:03:00.8]} 6... Nc6 {[%clk
0:02:59.7]} 7. O-O {[%clk 0:03:01.4]} 7... Be7 {[%clk 0:02:59.8]} 8. dxc5 {[%clk
0:03:01.6]} 8... Bxc5 {[%clk 0:03:00.7]} 9. a3 {[%clk 0:03:02.5]} 9... Ne4
{[%clk 0:03:00.3]} 10. Nbd2 {[%clk 0:02:55.4]} 10... O-O {[%clk 0:02:59.2]} 11.
Nb3 {[%clk 0:02:51.9]} 11... Be7 {[%clk 0:02:58.4]} 12. Nbd4 {[%clk 0:02:51.4]}
12... h5 {[%clk 0:02:51.9]} 13. Be3 {[%clk 0:02:31.7]} 13... h4 {[%clk
0:02:50.4]} 14. Nxc6 {[%clk 0:02:29.2]} 14... bxc6 {[%clk 0:02:50.3]} 15. Rc1
{[%clk 0:02:29.4]} 15... Bd7 {[%clk 0:02:50]} 16. Ne5 {[%clk 0:02:26.4]} 16...
Nf6 {[%clk 0:01:37.6]} 17. Nxc6 {[%clk 0:02:16.6]} 17... Bxc6 {[%clk 0:01:37.8]}
18. Rxc6 {[%clk 0:02:17.5]} 18... Qd7 {[%clk 0:01:37.8]} 19. Rc2 {[%clk
0:02:04.7]} 19... h3 {[%clk 0:01:34.5]} 20. Bf3 {[%clk 0:02:02.7]} 20... Rfd8
{[%clk 0:01:33.6]} 21. Qd4 {[%clk 0:01:52]} 21... a5 {[%clk 0:01:26.8]} 22. Rd1
{[%clk 0:01:45.6]} 22... Qe6 {[%clk 0:01:22.9]} 23. Qb6 {[%clk 0:00:51.3]} 23...
Rd6 {[%clk 0:01:04.4]} 24. Qb7 {[%clk 0:00:46.5]} 24... Rad8 {[%clk 0:01:00.6]}
25. Bc5 {[%clk 0:00:46.5]} 25... R6d7 {[%clk 0:01:00.1]} 26. Qb5 {[%clk
0:00:43.8]} 26... Bxc5 {[%clk 0:00:49.3]} 27. Qxc5 {[%clk 0:00:44.7]} 27... Ne4
{[%clk 0:00:49.2]} 28. Qxa5 {[%clk 0:00:33.1]} 28... d4 {[%clk 0:00:49.2]} 29.
Qe1 {[%clk 0:00:27.9]} 29... Ng5 {[%clk 0:00:46.8]} 30. Qf1 {[%clk 0:00:26.1]}
30... Nxf3+ {[%clk 0:00:43.9]} 31. exf3 {[%clk 0:00:27]} 31... d3 {[%clk
0:00:44.5]} 32. Rcd2 {[%clk 0:00:26.9]} 32... Qf5 {[%clk 0:00:45.1]} 33. Re1
{[%clk 0:00:20.4]} 33... Rc7 {[%clk 0:00:15.1]} 34. Re3 {[%clk 0:00:20.7]} 34...
Rc2 {[%clk 0:00:15.8]} 35. Rdxd3 {[%clk 0:00:20.7]} 35... Rxd3 {[%clk
0:00:15.7]} 36. Rxd3 {[%clk 0:00:21.4]} 36... Rxb2 {[%clk 0:00:12.7]} 37. g4
{[%clk 0:00:19.2]} 37... Qf6 {[%clk 0:00:04.1]} 38. Qxh3 {[%clk 0:00:15.2]}
38... Ra2 {[%clk 0:00:04.6]} 39. Qh5 {[%clk 0:00:13.9]} 39... g6 {[%clk
0:00:03.2]} 40. Qd5 {[%clk 0:00:13.2]} 40... Kg7 {[%clk 0:00:02.7]} 41. Kg2
{[%clk 0:00:13.6]} 41... Qb2 {[%clk 0:00:02.7]} 42. Qd6 {[%clk 0:00:10.1]} 42...
Qxf2+ {[%clk 0:00:01.8]} 43. Kh3 {[%clk 0:00:10.5]} 43... Qf1+ {[%clk
0:00:02.3]} 44. Kg3 {[%clk 0:00:09.3]} 44... Qe1+ {[%clk 0:00:03.2]} 45. Kf4
{[%clk 0:00:08.8]} 45... Qf1 {[%clk 0:00:04.1]} 46. Qe5+ {[%clk 0:00:07.8]}
46... Kh7 {[%clk 0:00:04.8]} 47. Qf6 {[%clk 0:00:06.8]} 47... Qxd3 {[%clk
0:00:05]} 48. Qxf7+ {[%clk 0:00:06.4]} 48... Kh8 {[%clk 0:00:05.6]} 49. Qf8+
{[%clk 0:00:05.9]} 49... Kh7 {[%clk 0:00:05.8]} 50. Qf7+ {[%clk 0:00:05.7]}
50... Kh8 {[%clk 0:00:06.4]} 51. Qf8+ {[%clk 0:00:05.6]} 51... Kh7 {[%clk
0:00:06.5]} 52. Qf7+ {[%clk 0:00:05.9]} 1/2-1/2

[Event "*** Titled Tuesday Blitz"]
[Site "Chess.com"]
[Date "2020.12.01"]
[Round "11"]
[White "PavelShkapenko"]
[Black "UCantHandleDenker"]
[Result "1-0"]
[WhiteElo "2697"]
[BlackElo "2543"]
[TimeControl "180+1"]
[EndTime "12:06:31 PST"]
[Termination "PavelShkapenko won by checkmate"]

1. e4 {[%clk 0:03:00.9]} 1... c5 {[%clk 0:02:58.7]} 2. c3 {[%clk 0:03:00.4]}
2... d6 {[%clk 0:02:58.9]} 3. d4 {[%clk 0:03:00.3]} 3... Nf6 {[%clk 0:02:59.5]}
4. Bd3 {[%clk 0:02:59.9]} 4... g6 {[%clk 0:03:00]} 5. dxc5 {[%clk 0:02:59.4]}
5... dxc5 {[%clk 0:02:54.7]} 6. e5 {[%clk 0:02:59.3]} 6... Nfd7 {[%clk
0:02:37.8]} 7. f4 {[%clk 0:02:27.9]} 7... Bg7 {[%clk 0:02:29.9]} 8. Nf3 {[%clk
0:02:25.7]} 8... Nb6 {[%clk 0:02:21.5]} 9. Qe2 {[%clk 0:02:24.4]} 9... O-O
{[%clk 0:02:16.3]} 10. Be3 {[%clk 0:02:21.4]} 10... c4 {[%clk 0:02:08.1]} 11.
Be4 {[%clk 0:02:16.1]} 11... Nc6 {[%clk 0:02:03.2]} 12. Nbd2 {[%clk 0:02:13]}
12... Nd5 {[%clk 0:01:56.3]} 13. Nxc4 {[%clk 0:02:05.3]} 13... Nxe3 {[%clk
0:01:55.1]} 14. Nxe3 {[%clk 0:02:04.6]} 14... Bh6 {[%clk 0:01:37.3]} 15. g3
{[%clk 0:01:51.3]} 15... Bh3 {[%clk 0:01:29.8]} 16. Qd2 {[%clk 0:01:15.9]} 16...
Qa5 {[%clk 0:01:16.9]} 17. Qd5 {[%clk 0:01:05.9]} 17... Qb6 {[%clk 0:01:12.5]}
18. Nc4 {[%clk 0:01:05]} 18... Qc7 {[%clk 0:01:12.4]} 19. Qc5 {[%clk 0:00:55.3]}
19... Rfd8 {[%clk 0:01:05.6]} 20. Nd4 {[%clk 0:00:48.6]} 20... Rac8 {[%clk
0:00:27.2]} 21. Nxc6 {[%clk 0:00:42.5]} 21... bxc6 {[%clk 0:00:24.4]} 22. Ke2
{[%clk 0:00:35.4]} 22... Bg4+ {[%clk 0:00:22.5]} 23. Bf3 {[%clk 0:00:34.7]}
23... Be6 {[%clk 0:00:18.5]} 24. Rhd1 {[%clk 0:00:31.9]} 24... Qb7 {[%clk
0:00:17.5]} 25. b3 {[%clk 0:00:30.8]} 25... Qa6 {[%clk 0:00:15.9]} 26. Kf2
{[%clk 0:00:25.3]} 26... Rd5 {[%clk 0:00:14.1]} 27. Qb4 {[%clk 0:00:23.1]} 27...
Rb5 {[%clk 0:00:13.2]} 28. Qxe7 {[%clk 0:00:22.3]} 28... Bf8 {[%clk 0:00:13.8]}
29. Rd8 {[%clk 0:00:18.7]} 29... Rxd8 {[%clk 0:00:12.5]} 30. Qxd8 {[%clk
0:00:18.9]} 30... Bxc4 {[%clk 0:00:13.1]} 31. bxc4 {[%clk 0:00:18.2]} 31... Rb2+
{[%clk 0:00:13.8]} 32. Kg1 {[%clk 0:00:17.5]} 32... Qxc4 {[%clk 0:00:14.3]} 33.
Rf1 {[%clk 0:00:14.1]} 33... Qxc3 {[%clk 0:00:12.7]} 34. Bg2 {[%clk 0:00:13.2]}
34... Qe3+ {[%clk 0:00:11.8]} 35. Kh1 {[%clk 0:00:12.7]} 35... Qe2 {[%clk
0:00:12.2]} 36. Rg1 {[%clk 0:00:13]} 36... Kg7 {[%clk 0:00:12.5]} 37. Qd4 {[%clk
0:00:10.9]} 37... Rc2 {[%clk 0:00:10.9]} 38. Qe4 {[%clk 0:00:10.5]} 38... Qd2
{[%clk 0:00:10.1]} 39. Rf1 {[%clk 0:00:08.5]} 39... c5 {[%clk 0:00:08.4]} 40. f5
{[%clk 0:00:08.3]} 40... c4 {[%clk 0:00:06.1]} 41. f6+ {[%clk 0:00:08.3]} 41...
Kg8 {[%clk 0:00:05.9]} 42. e6 {[%clk 0:00:08.7]} 42... fxe6 {[%clk 0:00:02.8]}
43. Qxe6+ {[%clk 0:00:08.8]} 43... Kh8 {[%clk 0:00:03.5]} 44. Qe4 {[%clk
0:00:08.8]} 44... Kg8 {[%clk 0:00:03.7]} 45. Qd5+ {[%clk 0:00:07.9]} 45... Kh8
{[%clk 0:00:03.6]} 46. Qe4 {[%clk 0:00:05.9]} 46... Qe2 {[%clk 0:00:02.9]} 47.
Qxe2 {[%clk 0:00:05.8]} 47... Rxe2 {[%clk 0:00:03.8]} 48. Bd5 {[%clk 0:00:05.7]}
48... Rd2 {[%clk 0:00:04.7]} 49. Bxc4 {[%clk 0:00:05.4]} 49... h5 {[%clk
0:00:04.6]} 50. Bb3 {[%clk 0:00:05.5]} 50... Kh7 {[%clk 0:00:04.9]} 51. Rc1
{[%clk 0:00:05.2]} 51... Kh6 {[%clk 0:00:05.8]} 52. Rc8 {[%clk 0:00:05.1]} 52...
Bb4 {[%clk 0:00:05.8]} 53. h4 {[%clk 0:00:05.4]} 53... Rf2 {[%clk 0:00:06.1]}
54. Rh8# {[%clk 0:00:04.8]} 1-0

[Event "*** Titled Tuesday Blitz"]
[Site "Chess.com"]
[Date "2020.12.01"]
[Round "11"]
[White "Taktikmonster"]
[Black "ljuks68"]
[Result "0-1"]
[WhiteElo "2216"]
[BlackElo "2368"]
[TimeControl "180+1"]
[EndTime "12:06:32 PST"]
[Termination "ljuks68 won by checkmate"]

1. e4 {[%clk 0:03:00.9]} 1... e6 {[%clk 0:02:59.1]} 2. d4 {[%clk 0:03:00.5]}
2... d5 {[%clk 0:02:59.5]} 3. Nd2 {[%clk 0:03:01]} 3... Nf6 {[%clk 0:02:58.9]}
4. e5 {[%clk 0:03:01.3]} 4... Nfd7 {[%clk 0:02:59.1]} 5. Bd3 {[%clk 0:03:01.9]}
5... c5 {[%clk 0:02:59.5]} 6. c3 {[%clk 0:03:02.5]} 6... Nc6 {[%clk 0:03:00]} 7.
Ne2 {[%clk 0:03:02.4]} 7... cxd4 {[%clk 0:03:00.5]} 8. cxd4 {[%clk 0:03:03.3]}
8... f6 {[%clk 0:03:01]} 9. exf6 {[%clk 0:03:04.2]} 9... Qxf6 {[%clk 0:03:00.1]}
10. O-O {[%clk 0:03:00.3]} 10... h6 {[%clk 0:02:58.9]} 11. Nf3 {[%clk
0:03:00.4]} 11... Bd6 {[%clk 0:02:58.7]} 12. Ng3 {[%clk 0:02:56.3]} 12... O-O
{[%clk 0:02:58.2]} 13. a3 {[%clk 0:02:49.2]} 13... Rd8 {[%clk 0:02:49]} 14. Be3
{[%clk 0:02:39.7]} 14... Nf8 {[%clk 0:02:46.7]} 15. Nh5 {[%clk 0:02:33.1]} 15...
Qf7 {[%clk 0:02:46.2]} 16. Nh4 {[%clk 0:02:32]} 16... Bd7 {[%clk 0:02:39.1]} 17.
g3 {[%clk 0:02:02.6]} 17... g5 {[%clk 0:02:34.1]} 18. Ng2 {[%clk 0:01:48.1]}
18... e5 {[%clk 0:02:03.1]} 19. dxe5 {[%clk 0:01:47.3]} 19... Nxe5 {[%clk
0:02:02.9]} 20. Be2 {[%clk 0:01:46.8]} 20... Be6 {[%clk 0:01:49.1]} 21. f4
{[%clk 0:01:44.6]} 21... Nc4 {[%clk 0:01:31.5]} 22. Bxc4 {[%clk 0:01:33.9]}
22... dxc4 {[%clk 0:01:30.7]} 23. fxg5 {[%clk 0:01:34.3]} 23... Qg6 {[%clk
0:01:21.3]} 24. Nf6+ {[%clk 0:01:15.9]} 24... Kh8 {[%clk 0:01:13.2]} 25. gxh6
{[%clk 0:00:43.5]} 25... Be5 {[%clk 0:01:05]} 26. Qf3 {[%clk 0:00:43.5]} 26...
Bxb2 {[%clk 0:00:59]} 27. Nh4 {[%clk 0:00:39.9]} 27... Qxf6 {[%clk 0:00:49]} 28.
Qxf6+ {[%clk 0:00:37.5]} 28... Bxf6 {[%clk 0:00:48.5]} 29. Rxf6 {[%clk
0:00:38.4]} 29... Rd3 {[%clk 0:00:41.6]} 30. Bc5 {[%clk 0:00:19.1]} 30... c3
{[%clk 0:00:30.2]} 31. Bxf8 {[%clk 0:00:16.4]} 31... c2 {[%clk 0:00:29.5]} 32.
Bg7+ {[%clk 0:00:16]} 32... Kh7 {[%clk 0:00:29]} 33. Rxe6 {[%clk 0:00:16.2]}
33... Rd1+ {[%clk 0:00:26]} 34. Re1 {[%clk 0:00:16.6]} 34... Rad8 {[%clk
0:00:23.5]} 35. Bb2 {[%clk 0:00:15.8]} 35... Rxa1 {[%clk 0:00:22.9]} 36. Rxa1
{[%clk 0:00:13.9]} 36... Rd1+ {[%clk 0:00:22.5]} 37. Kf2 {[%clk 0:00:09.4]}
37... Rxa1 {[%clk 0:00:22.1]} 38. Nf3 {[%clk 0:00:02.4]} 38... Rb1 {[%clk
0:00:14.1]} 39. Ng5+ {[%clk 0:00:01]} 39... Kxh6 {[%clk 0:00:13.3]} 40. Nf7+
{[%clk 0:00:01.9]} 40... Kh5 {[%clk 0:00:11.1]} 41. Ne5 {[%clk 0:00:01.7]} 41...
Rxb2 {[%clk 0:00:10.3]} 42. g4+ {[%clk 0:00:02.6]} 42... Kg5 {[%clk 0:00:09.2]}
43. Nd3 {[%clk 0:00:03.1]} 43... c1=Q+ {[%clk 0:00:08.1]} 44. Kf3 {[%clk
0:00:02.4]} 44... Rb3 {[%clk 0:00:07]} 45. Ke4 {[%clk 0:00:03.3]} 45... Qc2
{[%clk 0:00:06.3]} 46. Ke5 {[%clk 0:00:03.5]} 46... Qxd3 {[%clk 0:00:06.3]} 47.
h4+ {[%clk 0:00:04.4]} 47... Kxh4 {[%clk 0:00:06.4]} 48. a4 {[%clk 0:00:05.3]}
48... Rb4 {[%clk 0:00:06.4]} 49. Kf6 {[%clk 0:00:06.2]} 49... Re4 {[%clk
0:00:06]} 50. Kg7 {[%clk 0:00:07.1]} 50... Qf3 {[%clk 0:00:05.9]} 51. g5 {[%clk
0:00:08]} 51... Rg4 {[%clk 0:00:05.5]} 52. g6 {[%clk 0:00:08.9]} 52... Qf5
{[%clk 0:00:04.3]} 53. a5 {[%clk 0:00:09.8]} 53... Rxg6+ {[%clk 0:00:04.2]} 54.
Kh8 {[%clk 0:00:10.7]} 54... Qf8+ {[%clk 0:00:04.1]} 55. Kh7 {[%clk 0:00:10.4]}
55... Qg7# {[%clk 0:00:04.1]} 0-1

[Event "*** Titled Tuesday Blitz"]
[Site "Chess.com"]
[Date "2020.12.01"]
[Round "11"]
[White "lelya96"]
[Black "barriochess"]
[Result "0-1"]
[WhiteElo "2217"]
[BlackElo "2368"]
[TimeControl "180+1"]
[EndTime "12:06:33 PST"]
[Termination "barriochess won by checkmate"]

1. e4 {[%clk 0:02:58.7]} 1... d6 {[%clk 0:02:46.6]} 2. d4 {[%clk 0:02:56.6]}
2... Nf6 {[%clk 0:02:46.7]} 3. Nc3 {[%clk 0:02:55.8]} 3... g6 {[%clk 0:02:47]}
4. Nf3 {[%clk 0:02:54]} 4... Bg7 {[%clk 0:02:46.5]} 5. Be3 {[%clk 0:02:52.3]}
5... O-O {[%clk 0:02:45.4]} 6. h3 {[%clk 0:02:51.3]} 6... d5 {[%clk 0:02:45.2]}
7. e5 {[%clk 0:02:42.5]} 7... Ne4 {[%clk 0:02:45.4]} 8. Nxe4 {[%clk 0:02:42]}
8... dxe4 {[%clk 0:02:44]} 9. Nd2 {[%clk 0:02:41.5]} 9... c5 {[%clk 0:02:43.1]}
10. Nxe4 {[%clk 0:02:31.5]} 10... cxd4 {[%clk 0:02:41.1]} 11. Qxd4 {[%clk
0:02:28.9]} 11... Qxd4 {[%clk 0:02:38]} 12. Bxd4 {[%clk 0:02:28.2]} 12... Nc6
{[%clk 0:02:38.9]} 13. Bc3 {[%clk 0:02:23.4]} 13... Nxe5 {[%clk 0:02:33.7]} 14.
O-O-O {[%clk 0:02:22.2]} 14... b6 {[%clk 0:02:29.4]} 15. Bb5 {[%clk 0:02:16]}
15... Bb7 {[%clk 0:02:28.6]} 16. f3 {[%clk 0:02:15.2]} 16... Rfd8 {[%clk
0:02:22.4]} 17. Rhe1 {[%clk 0:02:11.9]} 17... Nc6 {[%clk 0:02:08.6]} 18. Bxg7
{[%clk 0:02:08.9]} 18... Kxg7 {[%clk 0:02:07.1]} 19. Nc3 {[%clk 0:02:08.1]}
19... e6 {[%clk 0:02:06.1]} 20. Ne4 {[%clk 0:01:59.6]} 20... Nd4 {[%clk
0:02:03.8]} 21. Bd3 {[%clk 0:01:55.1]} 21... Rac8 {[%clk 0:02:02]} 22. c3 {[%clk
0:01:54.1]} 22... h6 {[%clk 0:02:00.6]} 23. Kb1 {[%clk 0:01:52.7]} 23... Nf5
{[%clk 0:01:53.5]} 24. Bc2 {[%clk 0:01:44.3]} 24... Rxd1+ {[%clk 0:01:49.4]} 25.
Rxd1 {[%clk 0:01:42.8]} 25... Rc7 {[%clk 0:01:43.7]} 26. Nd6 {[%clk 0:01:37.5]}
26... Ne3 {[%clk 0:01:39.3]} 27. Rd2 {[%clk 0:01:37.1]} 27... Nxc2 {[%clk
0:01:34]} 28. Nxb7 {[%clk 0:01:33.5]} 28... Na3+ {[%clk 0:01:32.8]} 29. bxa3
{[%clk 0:01:33]} 29... Rxb7 {[%clk 0:01:32.7]} 30. a4 {[%clk 0:01:29.2]} 30...
Rc7 {[%clk 0:01:30]} 31. Kb2 {[%clk 0:01:29]} 31... f5 {[%clk 0:01:26.2]} 32. a5
{[%clk 0:01:18.4]} 32... bxa5 {[%clk 0:01:16.7]} 33. Rd6 {[%clk 0:01:18.1]}
33... Kf6 {[%clk 0:01:15.6]} 34. Ra6 {[%clk 0:01:17.8]} 34... g5 {[%clk
0:01:09.7]} 35. Kc2 {[%clk 0:01:12]} 35... h5 {[%clk 0:01:09.4]} 36. Kd3 {[%clk
0:01:11.6]} 36... h4 {[%clk 0:01:09.6]} 37. Rxa5 {[%clk 0:01:10]} 37... Rd7+
{[%clk 0:01:04.8]} 38. Ke2 {[%clk 0:01:08.9]} 38... Rc7 {[%clk 0:01:03.8]} 39.
Kd3 {[%clk 0:01:07.6]} 39... Rb7 {[%clk 0:00:54.9]} 40. a4 {[%clk 0:01:03.1]}
40... Rb2 {[%clk 0:00:52.9]} 41. Rxa7 {[%clk 0:01:02.2]} 41... Rxg2 {[%clk
0:00:53.4]} 42. a5 {[%clk 0:01:01.9]} 42... Rg3 {[%clk 0:00:53.7]} 43. a6 {[%clk
0:00:54.9]} 43... Rxh3 {[%clk 0:00:49.7]} 44. Rh7 {[%clk 0:00:48.1]} 44... Rxf3+
{[%clk 0:00:47.2]} 45. Kc4 {[%clk 0:00:47.1]} 45... Rf1 {[%clk 0:00:46.5]} 46.
Kb5 {[%clk 0:00:37.8]} 46... Ra1 {[%clk 0:00:46.2]} 47. c4 {[%clk 0:00:33.9]}
47... f4 {[%clk 0:00:46]} 48. c5 {[%clk 0:00:33.8]} 48... f3 {[%clk 0:00:46.2]}
49. Rh8 {[%clk 0:00:32.6]} 49... Kg7 {[%clk 0:00:45.8]} 50. Rh5 {[%clk
0:00:28.4]} 50... Kg6 {[%clk 0:00:45.4]} 51. Rh8 {[%clk 0:00:28.2]} 51... f2
{[%clk 0:00:45.8]} 52. Rf8 {[%clk 0:00:26.5]} 52... f1=Q+ {[%clk 0:00:44.9]} 53.
Rxf1 {[%clk 0:00:25.9]} 53... Rxf1 {[%clk 0:00:45.8]} 54. a7 {[%clk 0:00:24.7]}
54... Ra1 {[%clk 0:00:45.5]} 55. Kb6 {[%clk 0:00:25.2]} 55... h3 {[%clk
0:00:46]} 56. c6 {[%clk 0:00:25.2]} 56... h2 {[%clk 0:00:45.8]} 57. c7 {[%clk
0:00:23.7]} 57... Rb1+ {[%clk 0:00:45.7]} 58. Ka5 {[%clk 0:00:21.7]} 58... Ra1+
{[%clk 0:00:40.1]} 59. Kb6 {[%clk 0:00:21.3]} 59... h1=Q {[%clk 0:00:37]} 60.
c8=Q {[%clk 0:00:21.1]} 60... Rb1+ {[%clk 0:00:30.6]} 61. Ka5 {[%clk 0:00:18.7]}
61... Qe1+ {[%clk 0:00:30.1]} 62. Ka6 {[%clk 0:00:17.2]} 62... Qe2+ {[%clk
0:00:27.7]} 63. Ka5 {[%clk 0:00:14]} 63... Qa2# {[%clk 0:00:25.8]} 0-1